lending/lending_fUSD_20260310
["ID","MTS","AMOUNT","RATE_DAILY","PERIOD"]
[408156576,1773181888060,-160.0,0.00044,6]
[408156577,1773181888070,-1413.96,0.00044,30]
[408156578,1773181888081,-598.35105902,0.00044,120]
[408156579,1773181888091,-295.91393162,0.00044,120]
[408156580,1773181888100,-156.16458205,0.00044,120]
[408156581,1773181888110,-4000.0,0.00044,60]
[408156582,1773181888121,-3000.0,0.00044,30]
[408156583,1773181888131,-3000.0,0.00044,60]
[408156584,1773181888140,-150.0,0.00044,30]
[408156585,1773181888151,-400.0,0.00044,120]
[408156586,1773181888161,-563.504567,0.00044,57]
[408156587,1773181888172,-2500.0,0.00044,120]
[408156588,1773181888181,-382.0,0.00044,120]
[408156589,1773181888190,-500.0,0.00044,26]
[408156590,1773181888200,-500.0,0.00044,120]
[408156591,1773181888209,-1044.1,0.0004402,120]
[408156592,1773181888219,-759.39,0.00044043,120]
[408156593,1773181888228,-156.52633428,0.00044072,2]
[408156594,1773181888237,-81503.22259001,0.000441,2]
[408156595,1773181888247,-5866.6375,0.00044121,2]
[408156596,1773181888258,-174.23563849,0.00044172,120]
[408156597,1773181888268,-2652.99,0.000442,7]
[408156598,1773181888277,-500.0,0.00044246,120]
[408156599,1773181888287,-1200.2214,0.00044246,4]
[408156600,1773181888296,-901.8444,0.00044246,4]
[408156601,1773181888306,-2000.0,0.00044246,4]
[408156602,1773181888315,-10000.0,0.00044246,4]
[408156603,1773181888325,-2000.0,0.00044246,4]
[408156604,1773181888335,-10000.0,0.00044246,4]
[408156605,1773181888345,-455.0,0.00044247,120]
[408156606,1773181888355,-150.0,0.00044281,120]
[408156607,1773181888366,-759.39,0.00044317,120]
[408156608,1773181888375,-150.0,0.00044331,30]
[408156609,1773181888386,-156.52633428,0.00044345,2]
[408156610,1773181888395,-200.0,0.000444,19]
[408156611,1773181888405,-5000.0,0.000444,3]
[408156612,1773181888415,-3122.0,0.0004442,120]
[408156613,1773181888425,-2957.88773978,0.0004444,120]
[408156614,1773181888434,-154.0,0.000445,120]
[408156615,1773181888444,-2500.0,0.000445,120]
[408156616,1773181888454,-1400.4,0.000445,120]
[408156617,1773181888463,-382.0,0.000445,120]
[408156618,1773181888473,-500.0,0.000445,120]
[408156619,1773181888483,-1000.0,0.00044549,120]
[408156620,1773181888493,-964.3369732,0.00044549,120]
[408156621,1773181888504,-759.39,0.00044591,120]
[408156622,1773181888515,-156.52633428,0.00044619,2]
[408156623,1773181888524,-500.0,0.00044657,120]
[408156624,1773181888534,-1252.07,0.00044669,30]
[408156625,1773181888545,-15576.86867328,0.00044682,99]
[408156626,1773181888555,-152.0,0.000447,120]
[408156627,1773181888564,-1044.1,0.00044752,120]
[408156628,1773181888574,-1000.0,0.000448,5]
[408156629,1773181888583,-5335.86,0.000448,120]
[408156630,1773181888593,-150.73,0.0004484,120]
[408156631,1773181888603,-759.39,0.00044865,120]
[408156632,1773181888613,-2421.22610038,0.0004489,120]
[408156633,1773181888622,-156.52633428,0.00044893,2]
[408156634,1773181888631,-1605.6216855,0.000449,120]
[408156635,1773181888640,-45387.1033046,0.000449,120]
[408156636,1773181888649,-600.0,0.00044931,60]
[408156637,1773181888658,-500.0,0.00044931,60]
[408156638,1773181888667,-500.0,0.00044931,60]
[408156639,1773181888675,-150.73,0.0004494,120]
[408156640,1773181888684,-5000.0,0.0004495,30]
[408156641,1773181888694,-5000.0,0.0004495,30]
[408156642,1773181888703,-5000.0,0.0004495,30]
[408156643,1773181888712,-5000.0,0.0004495,30]
[408156644,1773181888721,-5000.0,0.0004495,30]
[408156645,1773181888731,-5000.0,0.0004495,30]
[408156646,1773181888741,-461.08,0.0004495,30]
[408156647,1773181888750,-1252.07,0.0004496,30]
[408156648,1773181888759,-214.0,0.0004496,30]
[408156649,1773181888769,-261.67,0.00045,7]
[408156650,1773181888778,-610.08143562,0.00045,10]
[408156651,1773181888786,-318.93570376,0.00045,10]
[408156652,1773181888795,-2453.71835722,0.00045,14]
[408156653,1773181888804,-153862.58295069,0.00045,2]
[408156654,1773181888813,-13997.9023967,0.00045,5]
[408156655,1773181888823,-162.22,0.00045,20]
[408156656,1773181888833,-843.4430883,0.00045,3]
[408156657,1773181888842,-300.0,0.00045,10]
[408156658,1773181888851,-186.10974575,0.00045,120]
[408156659,1773181888861,-258.76551089,0.00045,120]
[408156660,1773181888869,-242.0,0.00045,120]
[408156661,1773181888879,-242.0,0.00045,120]
[408156662,1773181888887,-2283.26,0.00045,120]
[408156663,1773181888896,-2842.23414078,0.00045,120]
[408156664,1773181888906,-100030.92935983,0.00045,30]
[408156665,1773181888915,-2500.0,0.00045,120]
[408156666,1773181888921,-1500.0,0.00045,120]
[408156667,1773181888928,-2500.0,0.00045,120]
[408156668,1773181888936,-77256.35779051,0.00045,7]
[408156669,1773181888943,-1137.72669313,0.00045,120]
[408156670,1773181888953,-2152.10164138,0.00045,120]
[408156671,1773181888962,-168.7125065,0.00045,120]
[408156672,1773181888972,-599.999995,0.00045,120]
[408156673,1773181888982,-837.12400402,0.00045,120]
[408156674,1773181888991,-1559.78669713,0.00045,120]
[408156675,1773181889001,-4271.10059937,0.00045,120]
[408156676,1773181889011,-1120.75921105,0.00045,120]
[408156677,1773181889021,-2436.73116893,0.00045,120]
[408156678,1773181889032,-554.67826671,0.00045,120]
[408156679,1773181889044,-462.73485475,0.00045,120]
[408156680,1773181889055,-2241.11451669,0.00045,30]
[408156681,1773181889065,-2103.75725918,0.00045,120]
[408156682,1773181889075,-1522.17438751,0.00045,30]
[408156683,1773181889085,-3207.02149523,0.00045,120]
[408156684,1773181889095,-10000.0,0.00045,30]
[408156685,1773181889104,-1149.17296552,0.00045,32]
[408156686,1773181889116,-298.27193993,0.00045,120]
[408156687,1773181889126,-2629.19141759,0.00045,120]
[408156688,1773181889135,-220.49281528,0.00045,30]
[408156689,1773181889145,-1016.90606226,0.00045,120]
[408156690,1773181889154,-1626.56410334,0.00045,120]
[408156691,1773181889164,-1842.94255891,0.00045,120]
[408156692,1773181889174,-343.24683695,0.00045,120]
[408156693,1773181889183,-2596.57008038,0.00045,30]
[408156694,1773181889192,-152.67858766,0.00045,30]
[408156695,1773181889202,-1033.41600146,0.00045,120]
[408156696,1773181889211,-331.37200389,0.00045,120]
[408156697,1773181889220,-523.04928482,0.00045,120]
[408156698,1773181889229,-2671.51687898,0.00045,120]
[408156699,1773181889239,-3375.52,0.00045,120]
[408156700,1773181889249,-3000.0,0.00045,30]
[408156701,1773181889259,-3000.0,0.00045,30]
[408156702,1773181889268,-3000.0,0.00045,30]
[408156703,1773181889278,-2814.36,0.00045,90]
[408156704,1773181889288,-11939.38609416,0.00045,120]
[408156705,1773181889299,-165.7090281,0.00045,120]
[408156706,1773181889309,-163.65008599,0.00045,10]
[408156707,1773181889319,-161.2,0.00045,85]
[408156708,1773181889328,-34755.44,0.00045,120]
[408156709,1773181889339,-676.0,0.00045,2]
[408156710,1773181889349,-247.28862873,0.00045,2]
[408156711,1773181889358,-545.85,0.00045,120]
[408156712,1773181889368,-647.58,0.00045,120]
[408156713,1773181889378,-62575.0,0.00045,60]
[408156714,1773181889388,-738.43036857,0.00045,2]
[408156715,1773181889397,-5330.43,0.00045,120]
[408156716,1773181889407,-5517.97,0.00045,120]
[408156717,1773181889416,-3157.39,0.00045,120]
[408156718,1773181889426,-1179.5,0.00045,120]
[408156719,1773181889436,-382.0,0.00045,120]
[408156720,1773181889446,-600.0,0.00045,120]
[408156721,1773181889455,-150.0,0.00045,120]
[408156722,1773181889465,-302.08830262,0.00045,120]
[408156723,1773181889475,-300.0,0.00045,120]
[408156724,1773181889485,-840.0,0.00045,120]
[408156725,1773181889495,-500.0,0.00045,120]
[408156726,1773181889505,-1687.91,0.00045,30]
[408156727,1773181889515,-961.83,0.00045,30]
[408156728,1773181889524,-150.73,0.0004504,120]
[408156729,1773181889534,-161.3789,0.00045048,2]
[408156730,1773181889544,-161.3789,0.00045048,2]
[408156731,1773181889554,-161.3789,0.00045048,2]
[408156732,1773181889563,-161.3789,0.00045048,2]
[408156733,1773181889573,-1510.55898369,0.000451,120]
[408156734,1773181889583,-2000.0,0.000451,2]
[408156735,1773181889592,-11193.25644016,0.00045123,90]
[408156736,1773181889602,-759.39,0.00045139,120]
[408156737,1773181889612,-150.73,0.0004514,120]
[408156738,1773181889621,-156.52633428,0.00045167,2]
[408156739,1773181889631,-2871.6,0.00045205,120]
[408156740,1773181889640,-1000.0,0.00045205,120]
[408156741,1773181889649,-162.20927871,0.0004521,120]
[408156742,1773181889659,-162.20927871,0.0004521,120]
[408156743,1773181889668,-162.20927871,0.0004521,120]
[408156744,1773181889678,-162.20927871,0.0004521,120]
[408156745,1773181889688,-162.20927871,0.0004521,120]
[408156746,1773181889698,-162.2,0.0004521,120]
[408156747,1773181889708,-151.3953268,0.0004521,120]
[408156748,1773181889718,-151.3953268,0.0004521,120]
[408156749,1773181889728,-151.3953268,0.0004521,120]
[408156750,1773181889738,-151.3953268,0.0004521,120]
[408156751,1773181889748,-151.3953268,0.0004521,120]
[408156752,1773181889757,-151.3953268,0.0004521,120]
[408156753,1773181889767,-151.3953268,0.0004521,120]
[408156754,1773181889777,-151.3953268,0.0004521,120]
[408156755,1773181889787,-151.3953268,0.0004521,120]
[408156756,1773181889798,-151.3953268,0.0004521,120]
[408156757,1773181889808,-151.3953268,0.0004521,120]
[408156758,1773181889817,-151.3953268,0.0004521,120]
[408156759,1773181889827,-151.3953268,0.0004521,120]
[408156760,1773181889837,-151.3953268,0.0004521,120]
[408156761,1773181889847,-151.39,0.0004521,120]
[408156762,1773181889857,-178.87917134,0.0004521,120]
[408156763,1773181889965,-178.87,0.0004521,120]
[408156764,1773181889975,-205.85838218,0.00045227,120]
[408156765,1773181889985,-150.73,0.0004524,120]
[408156766,1773181889995,-500.0,0.00045286,28]
[408156767,1773181890005,-298713.3165247,0.0004531,120]
[408156768,1773181890015,-150.73,0.0004534,120]
[408156769,1773181890028,-150.0,0.00045396,120]
[408156770,1773181890041,-200.0,0.000454,19]
[408156771,1773181890051,-5239.45581566,0.000454,3]
[408156772,1773181890060,-759.39,0.00045413,120]
[408156773,1773181890070,-2705.17079097,0.00045421,120]
[408156774,1773181890080,-150.73,0.0004544,120]
[408156775,1773181890090,-156.52633428,0.00045441,2]
[408156776,1773181890100,-1043.67,0.00045479,120]
[408156777,1773181890112,-600.0,0.00045479,60]
[408156778,1773181890122,-500.0,0.00045479,60]
[408156779,1773181890132,-2871.6,0.00045479,120]
[408156780,1773181890141,-217.80954863,0.00045487,120]
[408156781,1773181890151,-2500.0,0.000455,120]
[408156782,1773181890160,-2000.0,0.000455,90]
[408156783,1773181890170,-382.0,0.000455,120]
[408156784,1773181890180,-500.0,0.000455,120]
[408156785,1773181890189,-150.73,0.0004554,120]
[408156786,1773181890199,-3193.91,0.00045556,120]
[408156787,1773181890208,-258.76551089,0.00045556,120]
[408156788,1773181890217,-493.69575205,0.0004557,30]
[408156789,1773181890227,-154.0,0.000456,120]
[408156790,1773181890236,-3000.0,0.000456,30]
[408156791,1773181890246,-150.73,0.0004564,120]
[408156792,1773181890256,-720.7482892,0.00045678,120]
[408156793,1773181890266,-759.39,0.00045687,120]
[408156794,1773181890277,-152.0,0.000457,120]
[408156795,1773181890287,-2785.18669373,0.000457,120]
[408156796,1773181890297,-156.52633428,0.00045715,2]
[408156797,1773181890306,-150.73,0.0004574,120]
[408156798,1773181890317,-2871.6,0.00045753,120]
[408156799,1773181890326,-1241.0,0.0004584,120]
[408156800,1773181890335,-150.73,0.0004584,120]
[408156801,1773181890345,-150.0,0.00045857,120]
[408156802,1773181890356,-204.65,0.00045886,7]
[408156803,1773181890366,-834.46,0.000459,120]
[408156804,1773181890376,-580.24,0.000459,120]
[408156805,1773181890386,-150.0,0.00045915,30]
[408156806,1773181890395,-637.07,0.00045931,120]
[408156807,1773181890405,-150.73,0.0004594,120]
[408156808,1773181890415,-759.39,0.00045961,120]
[408156809,1773181890425,-156.52633428,0.00045989,2]
[408156810,1773181890436,-1000.0,0.00045999,120]
[408156811,1773181890446,-1469.79060797,0.00045999,120]
[408156812,1773181890456,-306.79562042,0.00046,2]
[408156813,1773181890466,-6070.68,0.00046,2]
[408156814,1773181890476,-106535.0,0.00046,30]
[408156815,1773181890486,-69793.50045145,0.00046,30]
[408156816,1773181890496,-2295.90574246,0.00046,120]
[408156817,1773181890506,-1000.0,0.00046,30]
[408156818,1773181890515,-1912.74736028,0.00046,120]
[408156819,1773181890525,-206.44660362,0.00046,30]
[408156820,1773181890535,-2262.97164117,0.00046,120]
[408156821,1773181890545,-1050.19580646,0.00046,120]
[408156822,1773181890555,-1948.48350431,0.00046,30]
[408156823,1773181890564,-365.13323451,0.00046,120]
[408156824,1773181890574,-2000.0,0.00046,90]
[408156825,1773181890583,-2820.47655806,0.00046,120]
[408156826,1773181890593,-1371.00595623,0.00046,120]
[408156827,1773181890602,-4196.61672821,0.00046,120]
[408156828,1773181890611,-10014.80378505,0.00046,120]
[408156829,1773181890620,-674.0,0.00046,30]
[408156830,1773181890630,-245.0,0.00046,30]
[408156831,1773181890638,-400.0,0.00046,120]
[408156832,1773181890647,-736.0,0.00046,30]
[408156833,1773181890656,-500.0,0.00046,120]
[408156834,1773181890666,-382.0,0.00046,120]
[408156835,1773181890675,-500.0,0.00046,120]
[408156836,1773181890684,-600.0,0.00046027,60]
[408156837,1773181890694,-2871.6,0.00046027,120]
[408156838,1773181890703,-500.0,0.00046027,60]
[408156839,1773181890712,-150.73,0.0004604,120]
[408156840,1773181890721,-150.0,0.00046082,120]
[408156841,1773181890731,-150.0,0.00046109,120]
[408156842,1773181890741,-31463.33217557,0.00046109,120]
[408156843,1773181890751,-258.76551089,0.00046111,120]
[408156844,1773181890762,-300.0,0.00046114,120]
[408156845,1773181890772,-172.244,0.0004612,76]
[408156846,1773181890781,-150.73,0.0004614,120]
[408156847,1773181890790,-2500.0,0.000462,120]
[408156848,1773181890800,-759.39,0.00046235,120]
[408156849,1773181890809,-150.73,0.0004624,120]
[408156850,1773181890818,-156.52633428,0.00046263,2]
[408156851,1773181890827,-161.6222,0.000463,60]
[408156852,1773181890837,-4423.28854995,0.000463,120]
[408156853,1773181890846,-212.63440833,0.00046301,120]
[408156854,1773181890855,-2871.6,0.00046301,120]
[408156855,1773181890865,-5000.0,0.00046322,30]
[408156856,1773181890874,-150.73,0.0004634,120]
[408156857,1773181890883,-62575.0,0.0004635,60]
[408156858,1773181890893,-686.14,0.00046388,30]
[408156859,1773181890902,-902.77,0.00046388,30]
[408156860,1773181890912,-611.61,0.00046388,30]
[408156861,1773181890921,-1170.73,0.00046388,30]
[408156862,1773181890930,-1416.07,0.00046388,30]
[408156863,1773181890940,-1403.02,0.00046388,30]
[408156864,1773181890949,-890.3,0.00046388,30]
[408156865,1773181890959,-1125.49,0.00046388,30]
[408156866,1773181890968,-1305.58,0.00046388,30]
[408156867,1773181890978,-1010.36,0.00046388,30]
[408156868,1773181890987,-1308.48,0.00046388,30]
[408156869,1773181890996,-683.53,0.00046388,30]
[408156870,1773181891006,-796.05,0.00046388,30]
[408156871,1773181891015,-1000.79,0.00046388,30]
[408156872,1773181891024,-781.84,0.00046388,30]
[408156873,1773181891034,-1169.28,0.00046388,30]
[408156874,1773181891047,-871.6450387,0.00046388,30]
[408156875,1773181891057,-5000.0,0.000464,3]
[408156876,1773181891066,-200.0,0.000464,20]
[408156877,1773181891075,-2500.0,0.000464,120]
[408156878,1773181891085,-150.0,0.00046402,120]
[408156879,1773181891094,-150.73,0.0004644,120]
[408156880,1773181891104,-917.59687121,0.00046475,120]
[408156881,1773181891115,-150.0,0.00046495,120]
[408156882,1773181891124,-224.05126742,0.00046498,60]
[408156883,1773181891133,-526.60158216,0.000465,30]
[408156884,1773181891142,-1711.0,0.000465,120]
[408156885,1773181891152,-382.0,0.000465,120]
[408156886,1773181891161,-150.0,0.000465,2]
[408156887,1773181891170,-500.0,0.000465,120]
[408156888,1773181891179,-151.0,0.00046501,10]
[408156889,1773181891188,-151.0,0.00046501,10]
[408156890,1773181891197,-151.0,0.00046501,10]
[408156891,1773181891206,-151.0,0.00046501,10]
[408156892,1773181891215,-151.0,0.00046501,10]
[408156893,1773181891224,-151.0,0.00046501,10]
[408156894,1773181891234,-151.0,0.00046501,10]
[408156895,1773181891243,-151.0,0.00046501,10]
[408156896,1773181891253,-151.0,0.00046501,10]
[408156897,1773181891262,-151.0,0.00046501,10]
[408156898,1773181891271,-151.0,0.00046501,10]
[408156899,1773181891281,-151.0,0.00046501,10]
[408156900,1773181891290,-151.0,0.00046501,10]
[408156901,1773181891300,-151.0,0.00046501,10]
[408156902,1773181891310,-151.0,0.00046501,10]
[408156903,1773181891319,-151.0,0.00046501,10]
[408156904,1773181891328,-151.0,0.00046501,10]
[408156905,1773181891337,-151.0,0.00046501,10]
[408156906,1773181891347,-151.0,0.00046501,10]
[408156907,1773181891357,-151.0,0.00046501,10]
[408156908,1773181891367,-151.0,0.00046501,10]
[408156909,1773181891376,-151.0,0.00046501,10]
[408156910,1773181891387,-151.0,0.00046501,10]
[408156911,1773181891396,-151.0,0.00046501,10]
[408156912,1773181891406,-151.0,0.00046501,10]
[408156913,1773181891416,-151.0,0.00046501,10]
[408156914,1773181891426,-151.0,0.00046501,10]
[408156915,1773181891436,-151.0,0.00046501,10]
[408156916,1773181891445,-151.0,0.00046501,10]
[408156917,1773181891455,-151.0,0.00046501,10]
[408156918,1773181891464,-151.0,0.00046501,10]
[408156919,1773181891474,-151.0,0.00046501,10]
[408156920,1773181891484,-151.0,0.00046501,10]
[408156921,1773181891493,-151.0,0.00046501,10]
[408156922,1773181891502,-151.0,0.00046501,10]
[408156923,1773181891520,-151.0,0.00046501,10]
[408156924,1773181891533,-151.0,0.00046501,10]
[408156925,1773181891542,-151.0,0.00046501,10]
[408156926,1773181891551,-151.0,0.00046501,10]
[408156927,1773181891561,-151.0,0.00046501,10]
[408156928,1773181891571,-151.0,0.00046501,10]
[408156929,1773181891580,-151.0,0.00046501,10]
[408156930,1773181891590,-151.0,0.00046501,10]
[408156931,1773181891599,-151.0,0.00046501,10]
[408156932,1773181891609,-151.0,0.00046501,10]
[408156933,1773181891618,-151.0,0.00046501,10]
[408156934,1773181891627,-151.0,0.00046501,10]
[408156935,1773181891637,-151.0,0.00046501,10]
[408156936,1773181891646,-151.0,0.00046501,10]
[408156937,1773181891655,-151.0,0.00046501,10]
[408156938,1773181891664,-151.0,0.00046501,10]
[408156939,1773181891674,-151.0,0.00046501,10]
[408156940,1773181891683,-151.0,0.00046501,10]
[408156941,1773181891693,-151.0,0.00046501,10]
[408156942,1773181891702,-151.0,0.00046501,10]
[408156943,1773181891711,-213.0,0.00046501,10]
[408156944,1773181891721,-759.39,0.00046509,120]
[408156945,1773181891730,-150.0,0.00046514,30]
[408156946,1773181891739,-2051.31162301,0.00046514,30]
[408156947,1773181891749,-156.52633428,0.00046537,2]
[408156948,1773181891759,-150.73,0.0004654,120]
[408156949,1773181891768,-301.02902775,0.0004657,3]
[408156950,1773181891778,-500.0,0.00046571,29]
[408156951,1773181891789,-466.658457,0.00046574,120]
[408156952,1773181891799,-168.3888056,0.00046574,30]
[408156953,1773181891808,-250.0,0.00046574,30]
[408156954,1773181891817,-579.88197956,0.00046574,30]
[408156955,1773181891826,-1148.61238259,0.00046574,30]
[408156956,1773181891836,-250.0,0.00046574,60]
[408156957,1773181891845,-174.61919141,0.00046574,60]
[408156958,1773181891855,-500.0,0.00046574,30]
[408156959,1773181891864,-601.3376128,0.00046574,60]
[408156960,1773181891878,-1191.11104075,0.00046574,60]
[408156961,1773181891887,-250.0,0.00046574,80]
[408156962,1773181891896,-181.08010149,0.00046574,80]
[408156963,1773181891906,-500.0,0.00046574,60]
[408156964,1773181891916,-623.58710448,0.00046574,80]
[408156965,1773181891925,-1235.18214925,0.00046574,80]
[408156966,1773181891935,-250.0,0.00046574,120]
[408156967,1773181891944,-187.78006525,0.00046574,120]
[408156968,1773181891954,-500.0,0.00046574,80]
[408156969,1773181891963,-646.65982734,0.00046574,120]
[408156970,1773181891973,-1280.88388878,0.00046574,120]
[408156971,1773181891982,-500.0,0.00046574,120]
[408156972,1773181891991,-500.0,0.00046574,30]
[408156973,1773181892001,-500.0,0.00046574,30]
[408156974,1773181892011,-500.0,0.00046574,60]
[408156975,1773181892021,-500.0,0.00046574,60]
[408156976,1773181892030,-1500.0,0.00046574,30]
[408156977,1773181892043,-500.0,0.00046574,80]
[408156978,1773181892053,-500.0,0.00046574,80]
[408156979,1773181892063,-1500.0,0.00046574,60]
[408156980,1773181892072,-500.0,0.00046574,120]
[408156981,1773181892083,-500.0,0.00046574,120]
[408156982,1773181892093,-1500.0,0.00046574,80]
[408156983,1773181892102,-151.0,0.00046574,30]
[408156984,1773181892113,-1500.0,0.00046574,120]
[408156985,1773181892122,-151.0,0.00046574,60]
[408156986,1773181892132,-151.0,0.00046574,80]
[408156987,1773181892142,-151.0,0.00046574,120]
[408156988,1773181892151,-1500.0,0.00046574,30]
[408156989,1773181892161,-500.0,0.00046574,30]
[408156990,1773181892170,-1500.0,0.00046574,60]
[408156991,1773181892180,-557.5788265,0.00046574,30]
[408156992,1773181892189,-3000.0,0.00046574,30]
[408156993,1773181892199,-500.0,0.00046574,60]
[408156994,1773181892209,-1500.0,0.00046574,80]
[408156995,1773181892219,-3000.0,0.00046574,60]
[408156996,1773181892228,-500.0,0.00046574,80]
[408156997,1773181892238,-3000.0,0.00046574,80]
[408156998,1773181892252,-1500.0,0.00046574,120]
[408156999,1773181892262,-500.0,0.00046574,120]
[408157000,1773181892272,-3000.0,0.00046574,120]
[408157001,1773181892282,-250.0,0.00046574,30]
[408157002,1773181892291,-250.0,0.00046574,60]
[408157003,1773181892301,-1500.0,0.00046574,30]
[408157004,1773181892311,-250.0,0.00046574,80]
[408157005,1773181892322,-1500.0,0.00046574,60]
[408157006,1773181892332,-250.0,0.00046574,120]
[408157007,1773181892342,-6424.15369371,0.00046574,30]
[408157008,1773181892352,-1500.0,0.00046574,80]
[408157009,1773181892362,-1500.0,0.00046574,120]
[408157010,1773181892373,-151.0,0.00046574,30]
[408157011,1773181892383,-691.39774486,0.00046574,30]
[408157012,1773181892393,-151.0,0.00046574,60]
[408157013,1773181892402,-716.97946142,0.00046574,60]
[408157014,1773181892411,-151.0,0.00046574,80]
[408157015,1773181892421,-151.0,0.00046574,120]
[408157016,1773181892430,-168.3888056,0.00046574,30]
[408157017,1773181892439,-1000.0,0.00046574,30]
[408157018,1773181892453,-1000.0,0.00046574,60]
[408157019,1773181892463,-1000.0,0.00046574,80]
[408157020,1773181892474,-1000.0,0.00046574,120]
[408157021,1773181892484,-557.5788265,0.00046574,30]
[408157022,1773181892494,-578.20924308,0.00046574,60]
[408157023,1773181892504,-168.3888056,0.00046574,30]
[408157024,1773181892514,-599.60298507,0.00046574,80]
[408157025,1773181892525,-174.61919141,0.00046574,60]
[408157026,1773181892534,-621.78829552,0.00046574,120]
[408157027,1773181892544,-181.08010149,0.00046574,80]
[408157028,1773181892553,-187.78006525,0.00046574,120]
[408157029,1773181892563,-1500.0,0.00046574,30]
[408157030,1773181892573,-1500.0,0.00046574,60]
[408157031,1773181892583,-1500.0,0.00046574,80]
[408157032,1773181892593,-1500.0,0.00046574,120]
[408157033,1773181892602,-600.0,0.00046575,60]
[408157034,1773181892613,-500.0,0.00046575,60]
[408157035,1773181892624,-1394.0,0.00046575,120]
[408157036,1773181892634,-2871.6,0.00046575,120]
[408157037,1773181892647,-163.0,0.00046575,3]
[408157038,1773181892657,-260.56058405,0.00046575,3]
[408157039,1773181892667,-166.0,0.00046575,3]
[408157040,1773181892676,-1500.0,0.00046575,30]
[408157041,1773181892686,-1500.0,0.00046575,30]
[408157042,1773181892696,-1500.0,0.00046575,30]
[408157043,1773181892706,-309.641916,0.00046575,120]
[408157044,1773181892715,-180.0,0.00046575,120]
[408157045,1773181892725,-180.0,0.00046575,120]
[408157046,1773181892735,-292.53337361,0.00046575,120]
[408157047,1773181892745,-150.0,0.00046575,15]
[408157048,1773181892756,-852.68,0.00046577,14]
[408157049,1773181892767,-150.0,0.00046577,120]
[408157050,1773181892777,-1000.0,0.000466,120]
[408157051,1773181892787,-1000.0,0.000466,120]
[408157052,1773181892798,-1000.0,0.000466,120]
[408157053,1773181892811,-1000.0,0.000466,120]
[408157054,1773181892821,-1000.0,0.000466,120]
[408157055,1773181892837,-1000.0,0.000466,120]
[408157056,1773181892847,-1000.0,0.000466,120]
[408157057,1773181892858,-152.0,0.000466,120]
[408157058,1773181892868,-170.0,0.000466,120]
[408157059,1773181892878,-417.66738502,0.0004662,120]
[408157060,1773181892888,-417.66738503,0.00046626,120]
[408157061,1773181892898,-1394.0,0.0004663,120]
[408157062,1773181892909,-152.72,0.00046635,120]
[408157063,1773181892919,-150.73,0.0004664,120]
[408157064,1773181892928,-154.52,0.00046651,120]
[408157065,1773181892939,-161.284131,0.00046661,7]
[408157066,1773181892949,-1487.866024,0.00046661,7]
[408157067,1773181892960,-2936.480552,0.00046661,7]
[408157068,1773181892971,-150.0,0.00046662,120]
[408157069,1773181892982,-810.89729393,0.00046667,120]
[408157070,1773181892993,-258.76551089,0.00046667,120]
[408157071,1773181893003,-1394.0,0.00046685,120]
[408157072,1773181893014,-150.0,0.00046692,30]
[408157073,1773181893027,-150.0,0.00046697,120]
[408157074,1773181893041,-154.0,0.000467,120]
[408157075,1773181893052,-150.0,0.00046703,120]